bitfinex-derivatives/quotes_SOLF0:USTF0_20250130
["timestamp","ask_amount","ask_price","bid_price","bid_amount"]
[1738254302375,1.4223,242.6,242.44,0.02836712]
[1738254302376,3.62911074,242.59,242.54,11.02118341]
[1738254302771,1.4223,242.6,242.54,11.02118341]
[1738254303070,4.1221,242.58,242.55,0.02667908]
[1738254303775,4.1224,242.56,242.55,0.02667908]
[1738254305675,0.03082495,242.59,242.55,0.02667908]
[1738254305877,1.4448,242.7,242.58,11.02118341]
[1738254306084,1.4448,242.7,242.61,11.02118341]
[1738254306283,4.1209,242.66,242.61,11.02118341]
[1738254306479,1.4448,242.7,242.61,11.02118341]
[1738254306675,4.1211,242.65,242.58,11.02118341]
[1738254307284,0.03154823,242.64,242.59,0.02788588]
[1738254308090,0.03154823,242.64,242.59,4.14978588]
[1738254308291,4.15274823,242.64,242.59,4.14978588]
[1738254308483,0.03154823,242.64,242.59,0.02788588]
[1738254309390,4.1217,242.61,242.59,0.02788588]
[1738254309700,0.03154823,242.64,242.59,0.02788588]
[1738254309898,4.1213,242.63,242.59,4.14968588]
[1738254310099,0.03154823,242.64,242.59,4.14968588]
[1738254310298,0.03154823,242.64,242.61,11.02118341]
[1738254310601,0.03154823,242.64,242.63,4.1212]
[1738254312600,4.1197,242.73,242.61,11.02118341]
[1738254312898,3.62651142,242.77,242.65,11.02118341]
[1738254313294,3.62651142,242.76,242.65,11.02118341]
[1738254313491,3.62651142,242.76,242.64,4.121]
[1738254313899,4.12,242.71,242.68,0.03016762]
[1738254314399,0.02746463,242.72,242.68,0.03016762]
[1738254316704,4.1206,242.69,242.68,0.03016762]
[1738254317401,11.04864804,242.72,242.59,11.02118341]
[1738254317608,1.329,242.71,242.6,4.122]
[1738254318000,4.95274502,242.71,242.6,4.122]
[1738254318198,4.95274502,242.71,242.61,4.1219]
[1738254318402,4.95274502,242.71,242.59,11.02118341]
[1738254318601,4.1214,242.65,242.63,0.03058684]
[1738254319103,4.1212,242.66,242.63,0.03058684]
[1738254319302,0.02856768,242.67,242.63,0.03058684]
[1738254320204,4.1211,242.66,242.63,0.03058684]
[1738254320409,0.02856768,242.67,242.63,0.03058684]
[1738254322307,0.02856768,242.67,242.64,4.1215]
[1738254323602,0.02856768,242.67,242.63,0.03058684]
[1738254323805,0.02856768,242.67,242.66,4.1211]
[1738254325003,4.1201,242.73,242.65,11.02118341]
[1738254325210,4.1201,242.73,242.69,11.02118341]
[1738254326103,4.1196,242.75,242.69,11.02118341]
[1738254326308,0.029141,242.73,242.69,11.04907635]
[1738254327803,0.029141,242.73,242.7,4.1203]
[1738254328609,0.029141,242.73,242.69,11.04907635]
[1738254330510,0.029141,242.73,242.72,4.1201]
[1738254330706,5.02047753,242.83,242.72,11.02118341]
[1738254330913,3.61527753,242.83,242.77,11.02118341]
[1738254331312,4.2161,242.88,242.77,11.02118341]
[1738254331619,4.2161,242.88,242.79,4.1188]
[1738254331911,0.03104434,242.85,242.8,0.03173577]
[1738254332315,4.1182,242.84,242.8,0.03173577]
[1738254332511,0.03104434,242.85,242.8,0.03173577]
[1738254332714,0.03104434,242.85,242.8,7.06266207]
[1738254332918,7.0309263,242.81,242.8,3.577e-05]
[1738254333514,11.1495263,242.81,242.8,3.577e-05]
[1738254334821,4.1186,242.81,242.8,3.577e-05]
[1738254338017,3.61208937,242.82,242.66,4.121]
[1738254338216,4.1204,242.7,242.66,4.121]
[1738254338517,10.99352573,242.79,242.65,10.99352573]
[1738254338811,4.1206,242.69,242.65,15.11472573]
[1738254339017,10.99352573,242.76,242.62,10.99352573]
[1738254339211,10.99352573,242.76,242.64,4.1213]
[1738254339212,4.1208,242.69,242.64,4.1213]
[1738254339418,4.150264,242.69,242.65,0.02658193]
[1738254339618,0.029464,242.69,242.65,11.02010766]
[1738254339818,0.029464,242.69,242.67,4.1209]
[1738254340019,0.029464,242.69,242.65,11.02010766]
[1738254340215,0.029464,242.69,242.67,4.1209]
[1738254341120,0.029464,242.69,242.66,4.1211]
[1738254342022,0.029464,242.69,242.67,4.1209]
[1738254343320,0.029464,242.69,242.66,4.1211]
[1738254345215,0.029464,242.69,242.67,4.1209]
[1738254346119,0.029464,242.69,242.65,0.02658193]
[1738254346628,4.1208,242.68,242.65,0.02658193]
[1738254346923,0.029464,242.69,242.65,0.02658193]
[1738254347324,4.1211,242.66,242.65,0.02658193]
[1738254349728,1.3137,242.68,242.53,10.99352573]
[1738254349934,4.94243802,242.68,242.53,10.99352573]
[1738254350627,3.62873802,242.67,242.53,10.99352573]
[1738254350823,0.0317196,242.63,242.58,0.02921555]
[1738254351732,4.1221,242.6,242.58,0.02921555]
[1738254351934,0.0317196,242.63,242.58,0.02921555]
[1738254352236,4.122,242.61,242.58,0.02921555]
[1738254354642,4.1222,242.6,242.58,0.02921555]
[1738254355141,4.1223,242.59,242.58,0.02921555]
[1738254356543,0.0317196,242.63,242.5,10.99352573]
[1738254356744,10.99352573,242.61,242.44,10.99352573]
[1738254357440,4.1235,242.52,242.44,10.99352573]
[1738254357641,10.99352573,242.61,242.44,10.99352573]
[1738254357945,0.03115447,242.5,242.46,0.02828527]
[1738254358246,0.03105475,242.55,242.41,323.68767198]
[1738254358544,1.4038,242.57,242.41,323.68767198]
[1738254358545,1.4038,242.57,242.46,0.03133136]
[1738254358744,0.02712952,242.5,242.46,0.03133136]
[1738254359141,4.1242,242.49,242.46,0.03133136]
[1738254360248,0.02712952,242.5,242.46,0.03133136]
[1738254360641,4.1241,242.49,242.46,0.03133136]
[1738254361444,4.1243,242.47,242.46,0.03133136]
[1738254363048,0.02712952,242.5,242.46,0.03133136]
[1738254363049,4.1241,242.49,242.46,0.03133136]
[1738254363252,0.02712952,242.5,242.46,0.03133136]
[1738254363749,0.02712952,242.5,242.46,4.15583136]
[1738254364549,4.15092952,242.5,242.46,4.15583136]
[1738254364745,4.15092952,242.5,242.47,7.04932854]
[1738254365265,4.1225,242.58,242.49,7.04932854]
[1738254365456,4.1225,242.58,242.57,7.04932854]
[1738254366058,4.1225,242.58,242.55,7.04932854]
[1738254366355,7.04932854,242.64,242.55,7.04932854]
[1738254366356,0.02916746,242.59,242.55,7.04932854]
[1738254366654,4.123,242.55,242.54,0.02816241]
[1738254368062,7.04932854,242.58,242.49,7.04932854]
[1738254368261,7.04932854,242.55,242.47,7.04932854]
[1738254369360,4.1239,242.5,242.49,0.03094799]
[1738254369552,4.1239,242.5,242.45,11.17402854]
[1738254369759,7.04932854,242.51,242.43,7.04932854]
[1738254369959,0.02798004,242.5,242.45,0.02942475]
[1738254370261,4.1243,242.48,242.45,0.02942475]
[1738254371260,0.02798004,242.5,242.46,4.1243]
[1738254371857,4.15188004,242.5,242.45,4.15412475]
[1738254372052,0.02798004,242.5,242.45,11.04805707]
[1738254372760,0.02798004,242.5,242.47,4.1243]
[1738254373356,0.02798004,242.5,242.45,11.04805707]
[1738254373357,4.124,242.49,242.45,4.15412475]
[1738254374364,4.124,242.49,242.45,0.02942475]
[1738254374560,4.1242,242.48,242.45,0.02942475]
[1738254375662,0.02798004,242.5,242.45,0.02942475]
[1738254376363,0.02798004,242.5,242.45,4.15392475]
[1738254376565,0.02798004,242.5,242.45,0.02942475]
[1738254378165,4.1245,242.46,242.45,0.02942475]
[1738254379569,4.1271,242.31,242.27,153.48645147]
[1738254379764,11.01863232,242.4,242.27,142.46781915]
[1738254380066,2.8761,242.39,242.27,142.46781915]
[1738254380267,4.1263,242.36,242.27,142.46781915]
[1738254380566,2.8761,242.39,242.27,142.46781915]
[1738254380759,0.02738965,242.34,242.29,0.02631054]
[1738254381160,4.1269,242.32,242.29,0.02631054]
[1738254381363,0.02738965,242.34,242.29,0.02631054]
[1738254381968,4.1268,242.33,242.29,0.02631054]
[1738254382365,4.1269,242.32,242.29,0.02631054]
[1738254382767,0.02738965,242.34,242.29,0.02631054]
[1738254383471,4.15398965,242.34,242.29,0.02631054]
[1738254384263,0.02738965,242.34,242.29,0.02631054]
[1738254385666,4.1272,242.3,242.29,0.02631054]
[1738254386067,0.02738965,242.34,242.21,11.01863232]
[1738254386068,4.1281,242.25,242.21,11.01863232]
[1738254386264,4.1281,242.25,242.18,11.01863232]
[1738254386466,11.01863232,242.34,242.18,11.01863232]
[1738254387174,4.1279,242.26,242.21,4.1288]
[1738254387571,0.03123947,242.28,242.21,4.1288]
[1738254387871,0.03123947,242.28,242.23,4.1283]
[1738254388474,0.03123947,242.28,242.18,11.01863232]
[1738254388675,0.03123947,242.28,242.15,11.01863232]
[1738254389172,0.02896763,242.24,242.15,11.01863232]
[1738254389671,4.15726763,242.24,242.17,4.1293]
[1738254389869,0.02896763,242.24,242.15,11.01863232]
[1738254390692,0.02896763,242.24,242.18,11.01863232]
[1738254391974,0.02896763,242.24,242.23,4.1284]
[1738254392277,0.02896763,242.24,242.18,11.01863232]
[1738254392579,0.02896763,242.24,242.22,4.1284]
[1738254393279,0.02896763,242.24,242.2,4.1288]
[1738254393774,0.02896763,242.24,242.21,4.1288]
[1738254393985,0.02896763,242.24,242.15,11.01863232]
[1738254394279,0.02896763,242.24,242.18,4.1291]
[1738254394481,4.15726763,242.24,242.12,12.45133232]
[1738254394681,4.15726763,242.24,242.13,0.75306967]
[1738254394881,4.15726763,242.24,242.19,4.1291]
[1738254396380,0.02896763,242.24,242.12,12.45133232]
[1738254397484,0.02896763,242.24,242.16,4.1296]
[1738254397777,0.02896763,242.24,242.12,12.45133232]
[1738254398278,4.15726763,242.24,242.2,4.1289]
[1738254398681,0.02896763,242.24,242.12,12.45133232]
[1738254398883,4.1286,242.22,242.18,4.1292]
[1738254399281,0.02896763,242.24,242.12,1.4327]
[1738254399478,0.02896763,242.24,242.09,11.01863232]
[1738254399677,11.01863232,242.21,242.06,18.89401008]
[1738254400084,4.1299,242.15,242.09,4.1307]
[1738254400284,0.0301414,242.17,242.06,7.87537776]
[1738254400885,4.1303,242.13,242.08,4.131]
[1738254401090,0.0301414,242.17,242.03,11.01863232]
[1738254401287,11.01863232,242.21,242.04,0.75312596]
[1738254401488,0.02666885,242.12,242.04,0.75312596]
[1738254401690,0.02666885,242.12,242.11,4.1305]
[1738254403081,0.02666885,242.12,242.02,1.3819]
[1738254403288,0.02666885,242.12,242.03,0.75289287]
[1738254403586,0.02666885,242.12,242.01,0.75311798]
[1738254403786,0.02666885,242.12,242.0,11.01863232]
[1738254403986,11.01863232,242.11,241.98,1.3408]
[1738254404382,11.01863232,242.11,241.94,11.01863232]
[1738254404383,11.01863232,242.01,241.91,186.18508714]
[1738254404781,4.1327,241.98,241.91,186.18508714]
[1738254404984,0.02614284,241.98,241.91,186.18508714]
[1738254405788,0.02614284,241.98,241.88,11.01863232]
[1738254406587,0.02614284,241.98,241.95,4.1332]
[1738254408092,0.02614284,241.98,241.96,4.1329]
[1738254410992,0.02614284,241.98,241.97,4.1329]
[1738254412091,0.02614284,241.98,241.88,11.01863232]
[1738254412484,0.02614284,241.98,241.97,4.1329]
[1738254415993,0.02614284,241.98,241.94,4.1332]
[1738254416493,0.02614284,241.98,241.89,11.01863232]
[1738254417192,0.02614284,241.98,241.94,4.1333]
[1738254417585,0.02614284,241.98,241.89,11.01863232]
[1738254417787,0.02614284,241.98,241.97,4.1329]
[1738254418794,2.842,242.1,241.95,11.01863232]
[1738254418996,1.3772,242.11,241.98,11.01863232]
[1738254419390,5.5078,242.11,242.05,4.1314]
[1738254419592,5.5078,242.11,241.98,11.01863232]
[1738254419792,1.3772,242.11,241.98,11.01863232]
[1738254419992,0.02988128,242.07,242.04,4.1316]
[1738254420195,0.02988128,242.07,242.02,0.0288699]
[1738254420394,0.02988128,242.07,242.03,4.1317]
[1738254420593,0.02988128,242.07,242.02,0.0288699]
[1738254421799,0.02988128,242.07,242.06,4.1313]
[1738254422500,1.3791,242.17,242.04,11.01863232]
[1738254422800,1.3791,242.17,242.12,4.1301]
[1738254423595,1.40522918,242.17,242.12,4.15951192]
[1738254423897,1.40522918,242.17,242.13,4.13]
[1738254424298,0.02612918,242.17,242.12,0.02941192]
[1738254424998,0.02612918,242.17,242.16,4.1296]
[1738254425998,4.1281,242.26,242.2,4.1288]
[1738254426803,3.60808566,242.26,242.17,11.01863232]
[1738254427196,0.02763551,242.24,242.19,0.0282676]
[1738254427601,0.02763551,242.24,242.23,4.1284]
[1738254427795,0.02763551,242.24,242.19,0.0282676]
[1738254428701,0.02763551,242.24,242.22,4.1285]
[1738254428898,0.02763551,242.24,242.19,0.0282676]
[1738254429694,0.02763551,242.24,242.2,4.1288]
[1738254429897,0.02763551,242.24,242.19,0.0282676]
[1738254431004,0.02763551,242.24,242.23,4.1284]
[1738254431403,11.01863232,242.37,242.2,11.01863232]
[1738254431706,11.01863232,242.34,242.2,11.01863232]
[1738254432101,4.1271,242.31,242.26,4.1279]
[1738254432301,11.01863232,242.34,242.26,4.1279]
[1738254432504,0.03028542,242.31,242.26,4.15778022]
[1738254433102,0.03028542,242.31,242.26,0.02988022]
[1738254433302,0.03028542,242.31,242.27,4.1277]
[1738254433803,0.03028542,242.31,242.3,4.1272]
[1738254438313,0.03028542,242.31,242.26,11.04851254]
[1738254438511,0.03028542,242.31,242.27,4.1277]
[1738254438813,0.03028542,242.31,242.26,0.02988022]
[1738254439210,4.15738542,242.31,242.26,0.02988022]
[1738254439710,0.03028542,242.31,242.28,4.1276]
[1738254440409,0.03028542,242.31,242.26,0.02988022]
[1738254440410,0.03028542,242.31,242.3,4.1272]
[1738254440911,0.03028542,242.31,242.26,0.02988022]
[1738254441421,4.1272,242.3,242.26,0.02988022]
[1738254441713,0.03028542,242.31,242.26,0.02988022]
[1738254441913,4.15748542,242.31,242.26,0.02988022]
[1738254443409,0.03028542,242.31,242.26,0.02988022]
[1738254443615,0.03028542,242.31,242.27,4.1276]
[1738254444711,4.15738542,242.31,242.26,4.15778022]
[1738254444916,0.03028542,242.31,242.26,11.04851254]
[1738254445618,0.03028542,242.31,242.26,0.02988022]
[1738254448217,0.03028542,242.31,242.29,4.1272]
[1738254449511,0.03028542,242.31,242.3,4.1272]
[1738254450928,0.03028542,242.31,242.29,4.1274]
[1738254453427,0.03028542,242.31,242.3,4.1272]
[1738254454120,0.03028542,242.31,242.29,4.1274]
[1738254455630,0.03028542,242.31,242.3,4.1272]
[1738254457328,0.03028542,242.31,242.26,11.04851254]
[1738254457528,0.03028542,242.31,242.29,4.1274]
[1738254459724,0.03028542,242.31,242.26,11.04851254]
[1738254459921,0.03028542,242.31,242.3,4.1272]
[1738254460931,0.03028542,242.31,242.26,11.04851254]
[1738254461727,0.03028542,242.31,242.29,4.1273]
[1738254463527,0.03028542,242.31,242.26,11.04851254]
[1738254464333,0.03028542,242.31,242.29,4.1272]
[1738254464634,0.03028542,242.31,242.29,11.18691318]
[1738254464834,0.03028542,242.31,242.29,7.05971318]
[1738254465535,0.03028542,242.31,242.29,11.18711318]
[1738254467132,0.03028542,242.31,242.26,0.02988022]
[1738254467334,7.05971318,242.3,242.26,0.02988022]
[1738254467534,8.43891318,242.3,242.26,0.02988022]
[1738254468134,0.03028542,242.31,242.27,7.05971318]
[1738254468438,0.03028542,242.31,242.29,7.05971318]
[1738254469338,0.03028542,242.31,242.3,4.1272]
[1738254469937,0.03028542,242.31,242.29,7.05971318]
[1738254470639,0.03028542,242.31,242.26,0.02988022]
[1738254473541,0.03028542,242.31,242.3,4.1272]
[1738254473742,0.03028542,242.31,242.26,0.02988022]
[1738254474244,0.03028542,242.31,242.28,4.1275]
[1738254475446,0.03028542,242.31,242.3,4.1272]
[1738254476144,0.03028542,242.31,242.26,0.02988022]
[1738254476345,0.03028542,242.31,242.27,4.1277]
[1738254476538,0.03028542,242.31,242.26,0.02988022]
[1738254477647,0.03028542,242.31,242.3,4.1272]
[1738254480249,0.03028542,242.31,242.29,4.1274]
[1738254480950,0.03028542,242.31,242.3,4.1272]
[1738254481645,1.3792,242.38,242.28,11.03095139]
[1738254481845,1.3792,242.38,242.35,4.1262]
[1738254482949,0.03050247,242.39,242.34,0.02798081]
[1738254483148,0.03050247,242.39,242.38,4.1259]
[1738254484148,2.7723,242.47,242.38,4.1259]
[1738254484348,2.7723,242.47,242.42,4.125]
[1738254484955,2.7723,242.47,242.41,4.1253]
[1738254485151,2.7723,242.47,242.4,11.03095139]
[1738254485456,0.0290566,242.46,242.41,0.03090735]
[1738254486254,0.0290566,242.46,242.41,4.15610735]
[1738254486558,0.0290566,242.46,242.41,0.03090735]
[1738254487955,4.1537566,242.46,242.41,0.03090735]
[1738254488354,0.0290566,242.46,242.41,0.03090735]
[1738254488957,4.1249,242.44,242.41,0.03090735]
[1738254489253,0.0290566,242.46,242.41,0.03090735]
[1738254489452,4.1249,242.44,242.41,0.03090735]
[1738254490256,4.1247,242.45,242.41,0.03090735]
[1738254491459,0.0290566,242.46,242.43,4.1249]
[1738254492655,0.0290566,242.46,242.44,7.05076331]
[1738254493059,0.0290566,242.46,242.44,11.17556331]
[1738254494561,0.0290566,242.46,242.44,7.05076331]
[1738254496158,0.0290566,242.46,242.45,4.1247]
[1738254496666,0.0290566,242.46,242.44,7.05076331]
[1738254498057,0.0290566,242.46,242.41,0.03090735]
[1738254498058,0.0290566,242.46,242.42,7.05076331]
[1738254498858,4.1535566,242.46,242.42,7.05076331]
[1738254499256,0.0290566,242.46,242.44,7.05076331]
[1738254499464,0.0290566,242.46,242.45,4.1247]
[1738254500257,0.0290566,242.46,242.44,11.17556331]
[1738254500465,0.0290566,242.46,242.44,7.05076331]
[1738254501665,0.0290566,242.46,242.45,4.1247]
[1738254502261,0.0290566,242.46,242.42,11.17586331]
[1738254502469,0.0290566,242.46,242.41,0.03090735]
[1738254503661,4.1536566,242.46,242.41,0.03090735]
[1738254504360,7.07981991,242.46,242.41,0.03090735]
[1738254504564,7.05076331,242.44,242.41,0.03090735]
[1738254504765,4.1252,242.42,242.41,0.03090735]
[1738254504967,7.05076331,242.44,242.41,0.03090735]
[1738254505168,7.07981991,242.46,242.41,0.03090735]
[1738254505965,4.125,242.44,242.41,0.03090735]
[1738254506162,0.0290566,242.46,242.41,0.03090735]
[1738254506466,11.17596331,242.42,242.41,0.03090735]
[1738254506660,4.1252,242.42,242.41,0.03090735]
[1738254506858,1.4057566,242.46,242.41,0.03090735]
[1738254507167,0.0290566,242.46,242.41,0.03090735]
[1738254509669,4.125,242.43,242.41,0.03090735]
[1738254509866,0.0290566,242.46,242.41,0.03090735]
[1738254510764,5.66e-05,242.46,242.45,11.02625484]
[1738254510969,2.7456,242.63,242.45,11.02625484]
[1738254511174,2.7456,242.63,242.5,11.02625484]
[1738254511669,2.7456,242.63,242.53,11.02625484]
[1738254512064,0.02806839,242.6,242.56,0.0292216]
[1738254513267,0.02806839,242.6,242.56,11.05547644]
[1738254513472,0.02806839,242.6,242.57,4.1226]
[1738254513974,0.02806839,242.6,242.56,11.05547644]
[1738254518079,0.02806839,242.6,242.56,15.17817644]
[1738254518779,0.02806839,242.6,242.56,0.0292216]
[1738254518980,4.1223,242.59,242.56,0.0292216]
[1738254519682,0.02806839,242.6,242.56,0.0292216]
[1738254520085,0.02806839,242.6,242.59,11.02625484]
[1738254520285,0.02806839,242.6,242.59,15.14855484]
[1738254521783,2.8371,242.74,242.59,11.02625484]
[1738254521986,4.1207,242.69,242.62,15.14805484]
[1738254523085,0.028584,242.68,242.63,0.02963369]
[1738254523286,0.028584,242.68,242.63,4.15123369]
[1738254523486,0.028584,242.68,242.63,0.02963369]
[1738254523787,0.028584,242.68,242.65,11.02625484]
[1738254523987,0.028584,242.68,242.67,4.1209]
[1738254527585,4.1193,242.77,242.65,11.02625484]
[1738254527786,4.1193,242.77,242.71,11.02625484]
[1738254528189,4.1194,242.76,242.69,4.1206]
[1738254528594,0.02924123,242.75,242.7,0.03067376]
[1738254529896,4.1198,242.74,242.7,0.03067376]
[1738254530392,4.1199,242.73,242.7,0.03067376]
[1738254530585,0.02924123,242.75,242.7,0.03067376]
[1738254531796,4.12,242.73,242.7,0.03067376]
[1738254532192,0.02924123,242.75,242.7,0.03067376]
[1738254532392,4.1202,242.72,242.7,0.03067376]
[1738254532996,0.02924123,242.75,242.7,0.03067376]
[1738254533193,4.1202,242.71,242.7,0.03067376]
[1738254533391,0.02924123,242.75,242.7,0.03067376]
[1738254533994,4.1201,242.72,242.7,0.03067376]
[1738254536797,0.02924123,242.75,242.7,0.03067376]
[1738254536992,4.12,242.73,242.7,0.03067376]
[1738254537792,4.12,242.73,242.7,7.068263]
[1738254538595,4.1202,242.72,242.7,0.03067376]
[1738254538793,0.02924123,242.75,242.7,0.03067376]
[1738254540298,4.1201,242.72,242.7,0.03067376]
[1738254541698,4.1202,242.71,242.7,0.03067376]
[1738254541999,0.02924123,242.75,242.7,0.03067376]
[1738254542197,4.12,242.73,242.7,0.03067376]
[1738254542397,0.02924123,242.75,242.7,7.068263]
[1738254543099,7.03758924,242.91,242.74,7.03758924]
[1738254543299,1.4234,242.88,242.82,7.03758924]
[1738254543498,4.1181,242.84,242.78,7.03758924]
[1738254543802,7.03758924,242.85,242.76,7.03758924]
[1738254544196,7.03758924,242.85,242.78,0.02924731]
[1738254544399,4.1186,242.81,242.78,0.02924731]
[1738254544799,0.0261899,242.83,242.78,0.02924731]
[1738254547999,0.0261899,242.83,242.69,10.98801876]
[1738254548197,10.98801876,242.85,242.69,10.98801876]
[1738254548402,4.119,242.79,242.71,4.1202]
[1738254548603,10.98801876,242.85,242.71,4.1202]
[1738254549003,12.41141876,242.88,242.72,10.98801876]
[1738254549203,0.02981319,242.8,242.76,0.03100151]
[1738254549508,1.4234,242.88,242.76,0.03100151]
[1738254549904,2.7934,242.9,242.76,0.03100151]
[1738254550208,1.4157,242.96,242.89,10.98801876]
[1738254550803,0.02651109,242.95,242.9,0.02971386]
[1738254550999,0.02651109,242.95,242.92,10.98801876]
[1738254551300,0.02651109,242.95,242.9,0.02971386]
[1738254551697,0.02651109,242.95,242.92,4.1167]
[1738254552306,0.02651109,242.95,242.92,15.10471876]
[1738254552806,0.02651109,242.95,242.92,10.98801876]
[1738254553405,0.02651109,242.95,242.9,0.02971386]
[1738254556610,4.14281109,242.95,242.9,0.02971386]
[1738254556908,0.02651109,242.95,242.9,0.02971386]
[1738254559208,4.1167,242.92,242.9,0.02971386]
[1738254559408,0.02651109,242.95,242.9,0.02971386]
[1738254559802,4.1167,242.92,242.9,0.02971386]
[1738254560713,0.02651109,242.95,242.9,0.02971386]
[1738254561709,4.1169,242.91,242.9,0.02971386]
[1738254561909,0.02651109,242.95,242.9,0.02971386]
[1738254563311,4.1169,242.91,242.9,0.02971386]
[1738254564309,4.1164,242.94,242.9,0.02971386]
[1738254564515,0.02651109,242.95,242.9,0.02971386]
[1738254567414,4.14271109,242.95,242.9,0.02971386]
[1738254567623,0.02651109,242.95,242.9,0.02971386]
[1738254569114,4.1164,242.94,242.9,0.02971386]
[1738254571219,0.02651109,242.95,242.9,0.02971386]
[1738254571419,4.14271109,242.95,242.9,0.02971386]
[1738254571620,0.02651109,242.95,242.9,0.02971386]
[1738254572016,0.02651109,242.95,242.91,4.1169]
[1738254572217,0.02651109,242.95,242.9,0.02971386]
[1738254573219,0.02651109,242.95,242.9,4.14671386]
[1738254575520,0.02651109,242.95,242.91,15.10481876]
[1738254576025,0.02651109,242.95,242.91,10.98801876]
[1738254578627,0.02651109,242.95,242.91,15.10481876]
[1738254580624,0.02651109,242.95,242.91,10.98801876]
[1738254580818,0.02651109,242.95,242.9,0.02971386]
[1738254581228,4.14271109,242.95,242.9,0.02971386]
[1738254581828,0.02651109,242.95,242.9,0.02971386]
[1738254584032,4.1164,242.94,242.9,0.02971386]
[1738254585726,4.1166,242.93,242.9,0.02971386]
[1738254586032,0.02651109,242.95,242.9,0.02971386]
[1738254587133,4.1169,242.91,242.9,0.02971386]
[1738254589133,4.1167,242.93,242.9,0.02971386]
[1738254589434,1.3241,242.94,242.9,0.02971386]
[1738254589933,1.3241,242.94,242.87,7.02480868]
[1738254589934,4.1171,242.9,242.85,7.02480868]
[1738254590935,4.14868577,242.9,242.85,7.05529604]
[1738254591333,7.02480868,242.88,242.85,0.03048736]
[1738254591635,7.02480868,242.86,242.77,319.71895493]
[1738254591835,1.42,242.85,242.79,7.02480868]
[1738254592035,1.42,242.85,242.81,7.02480868]
[1738254592633,1.44852593,242.85,242.81,7.05647346]
[1738254596137,1.44852593,242.85,242.83,7.02480868]
[1738254596336,0.02852593,242.85,242.83,7.02480868]
[1738254597344,0.02852593,242.85,242.84,4.1181]
[1738254598646,0.02852593,242.85,242.84,15.09561182]
[1738254598941,0.02852593,242.85,242.84,10.97751182]
[1738254600643,0.02852593,242.85,242.84,15.09561182]
[1738254601746,0.02852593,242.85,242.84,10.97751182]
[1738254603042,1.3479,242.93,242.84,15.09561182]
[1738254603244,1.3192,242.94,242.87,10.97751182]
[1738254603641,1.3192,242.94,242.84,10.97751182]
[1738254604139,1.3192,242.94,242.84,15.09551182]
[1738254604140,4.1169,242.91,242.84,15.09551182]
[1738254604445,0.02964688,242.91,242.87,0.02994663]
[1738254604645,4.14654688,242.91,242.87,0.02994663]
[1738254605340,0.02964688,242.91,242.87,0.02994663]
[1738254606244,0.02964688,242.91,242.87,4.14734663]
[1738254606447,0.02964688,242.91,242.87,11.00745845]
[1738254606847,0.02964688,242.91,242.87,15.12495845]
[1738254607045,0.02964688,242.91,242.87,0.02994663]
[1738254607344,4.117,242.9,242.87,0.02994663]
[1738254607544,0.02964688,242.91,242.87,0.02994663]
[1738254608344,0.02964688,242.91,242.87,11.00745845]
[1738254609247,0.02964688,242.91,242.89,4.1171]
[1738254610549,0.02964688,242.91,242.87,11.00745845]
[1738254610751,0.02964688,242.91,242.9,4.117]
[1738254611147,0.02964688,242.91,242.9,15.09451182]
[1738254615154,92.51751182,243.05,242.87,0.02994663]
[1738254615155,10.97751182,243.09,242.95,4.1161]
[1738254615354,1.3616,243.08,242.95,4.1161]
[1738254615556,10.97751182,243.06,242.93,10.97751182]
[1738254615756,4.1151,243.02,242.94,4.1163]
[1738254616354,0.0289047,243.0,242.96,0.02981873]
[1738254617058,0.0289047,243.0,242.96,4.14581873]
[1738254617653,0.0289047,243.0,242.97,4.1157]
[1738254618357,0.0289047,243.0,242.96,0.02981873]
[1738254618754,0.0289047,243.0,242.96,7.05071204]
[1738254619157,0.0289047,243.0,242.99,7.02089331]
[1738254619359,1.3616,243.08,242.99,7.02089331]
[1738254619568,2.7171,243.1,243.06,7.02089331]
[1738254619759,4.1138,243.09,243.06,7.02089331]
[1738254620850,2.7480885,243.1,243.06,7.02089331]
[1738254621060,2.7480885,243.1,243.08,7.02089331]
[1738254621061,0.0309885,243.1,243.08,7.02089331]
[1738254622458,0.0309885,243.1,243.06,7.02089331]
[1738254622661,0.0309885,243.1,243.05,0.02605209]
[1738254622662,4.1447885,243.1,243.05,0.02605209]
[1738254622860,0.0309885,243.1,243.05,0.02605209]
[1738254624061,0.0309885,243.1,243.06,10.96074781]
[1738254624359,0.0309885,243.1,243.05,0.02605209]
[1738254624958,4.1143,243.06,243.05,0.02605209]
[1738254626761,0.0309885,243.1,243.05,0.02605209]
[1738254627466,4.1143,243.07,243.05,0.02605209]
[1738254627963,0.0309885,243.1,243.05,0.02605209]
[1738254628163,4.1143,243.06,243.05,0.02605209]